Workbook

Sheet НВЛ
E1: Перечень предлагаемых
E2: непрофильных и невостребованных ликвидных (НВЛ) МТР
E3: по состоянию на 30.06.2025, находящие в собственности ООО "НК"Русснефть-Брянск".
A4: № п/п | B4: Товарная группа | C4: Номенклатурный номер | D4: Наименование ТМЦ | E4: Дата ввода в эксплуатацию (для ОС), дата поступления на склад (для материалов) | F4: Цена реализации без НДС (руб/ед.) | G4: Кол-во | H4: Стоимость реализации без НДС (руб.) | I4: Местонахождение НВЛ | J4: Причина отнесения к НВЛ | K4: Техническое состояние ТМЦ | L4: ФИО контактного лица (Группа по реализации НВЛ и НЛ) | M4: Телефон контактного лица
A7: 1 | B7: НВЛ | C7: VA-00003948 | D7: Картридж XEROKX Toner Cartidge 006R01179 | E7: 2008 г. | F7: 1064.5 | G7: 10 | H7: =F7*G7 -> 10645 | I7: основной склад | J7: не востребовано | K7: нов.удовл. | L7: Обоз С.В. | M7: 8(48351)25097
A8: 2 | B8: НВЛ | C8: VA-00005287 | D8: Клапан предохранительный , латунь | E8: 2008 г. | F8: 15440 | G8: 6 | H8: =F8*G8 -> 92640 | I8: основной склад | J8: не востребовано | K8: нов.удовл. | L8: Обоз С.В. | M8: 8(48351)25097
A9: 3 | B9: НВЛ | C9: 00-00001379 | D9: Муфта оптическая соединительная МТОК 96/192Т1-01 | E9: 2005 г. | F9: 2643.77 | G9: 30 | H9: =F9*G9 -> 79313.1 | I9: основной склад | J9: не востребовано | K9: нов.удовл. | L9: Обоз С.В. | M9: 8(48351)25097
A10: 4 | B10: НВЛ | C10: VA-00004629 | D10: Муфта п/э | E10: 2006 г. | F10: 16.27 | G10: 24 | H10: =F10*G10 -> 390.48 | I10: основной склад | J10: не востребовано | K10: нов.удовл. | L10: Обоз С.В. | M10: 8(48351)25097
A11: 5 | B11: НВЛ | C11: VA-00004037 | D11: Принт-картридж XEROKX Drum Cartidge 013R005889 | E11: 2008 г. | F11: 2898.11 | G11: 3 | H11: =F11*G11 -> 8694.33 | I11: основной склад | J11: не востребовано | K11: нов.удовл. | L11: Обоз С.В. | M11: 8(48351)25097
A12: 6 | B12: НВЛ | C12: 00-00001398 | D12: Светильник РСП 3ВМ-250 IP65 | E12: 2005 г. | F12: 6531.59 | G12: 39 | H12: =F12*G12 -> 254732.01 | I12: основной склад | J12: не востребовано | K12: нов.удовл. | L12: Обоз С.В. | M12: 8(48351)25097
A13: 7 | B13: НВЛ | C13: VA-00002090 | D13: Телефонная розетка-адаптер универсальный "Пересвет" | E13: 2005 г. | F13: 11.19 | G13: 40 | H13: =F13*G13 -> 447.6 | I13: основной склад | J13: не востребовано | K13: нов.удовл. | L13: Обоз С.В. | M13: 8(48351)25097
A14: 8 | B14: НВЛ | C14: VA-00001410 | D14: Труба ПВХ гофрированная 40 мм | E14: 2005 г. | F14: 43.58 | G14: 720 | H14: =F14*G14 -> 31377.6 | I14: основной склад | J14: не востребовано | K14: нов.удовл. | L14: Обоз С.В. | M14: 8(48351)25097
A15: 9 | B15: НВЛ | C15: VA-00004583 | D15: Труба ДУ 203*10 | E15: 2005 г. | F15: 1351.64 | G15: 32 | H15: =F15*G15 -> 43252.48 | I15: основной склад | J15: не востребовано | K15: нов.удовл. | L15: Обоз С.В. | M15: 8(48351)25097
A16: 10 | B16: НВЛ | C16: 00-00001158 | D16: Шнур 1-4с Ф 14 ГОСТ 6467-79 | E16: 2005 г. | F16: 119.42 | G16: 110.5 | H16: =F16*G16 -> 13195.91 | I16: основной склад | J16: не востребовано | K16: нов.удовл. | L16: Обоз С.В. | M16: 8(48351)25097
A17: 11 | B17: НВЛ | C17: 00-00001157 | D17: Шнур МБС 1-4с Ф 10 ГОСТ 6467-79 | E17: 2005 г. | F17: 133.02 | G17: 47 | H17: =F17*G17 -> 6251.94 | I17: основной склад | J17: не востребовано | K17: нов.удовл. | L17: Обоз С.В. | M17: 8(48351)25097
A18: 12 | B18: НВЛ | C18: 00-00001156 | D18: Шнур МБС 1-4с Ф 8 ГОСТ 6467-79 | E18: 2005 г. | F18: 121.98 | G18: 49 | H18: =F18*G18 -> 5977.02 | I18: основной склад | J18: не востребовано | K18: нов.удовл. | L18: Обоз С.В. | M18: 8(48351)25097
A19: 13 | B19: НВЛ | C19: VA-00006597 | D19: Номер ООН по СМГС 33/1267 300мм 400мм | E19: 2019 г. | F19: 18.66 | G19: 3000 | H19: =F19*G19 -> 55980 | I19: ТТР | J19: не востребовано | K19: нов.удовл. | L19: Обоз С.В. | M19: 8(48351)25097
A20: 14 | B20: НВЛ | C20: VA-00006596 | D20: Знак опасности АК 3/315/3/ 250мм 250мм | E20: 2019г. | F20: 12.78 | G20: 3000 | H20: =F20*G20 -> 38340 | I20: ТТР | J20: не востребовано | K20: нов.удовл. | L20: Обоз С.В. | M20: 8(48351)25097
A21: 15 | B21: НВЛ | C21: VA-00002227 | D21: Шнур МБС 1-4с Ф 8 ГОСТ 6467-79 | E21: 2005 г. | F21: 133.46 | G21: 51 | H21: =F21*G21 -> 6806.46 | I21: основной склад | J21: не востребовано | K21: нов.удовл. | L21: Обоз С.В. | M21: 8(48351)25097
A22: 16 | B22: НВЛ | C22: VA-00004475 | D22: Болт М20 | E22: 2007 г. | F22: 42.58 | G22: 36.1 | H22: =F22*G22 -> 1537.138 | I22: основной склад | J22: не востребовано | K22: нов.удовл. | L22: Обоз С.В. | M22: 8(48351)25097
A23: 17 | B23: НВЛ | C23: VA-00004474 | D23: Гайка М20 | E23: 2007 г. | F23: 46.37 | G23: 20.78 | H23: =F23*G23 -> 963.5686 | I23: основной склад | J23: не востребовано | K23: нов.удовл. | L23: Обоз С.В. | M23: 8(48351)25097
A24: 18 | B24: НВЛ | C24: VA-00004985 | D24: Гвозди 1.4*32мм | E24: 2008 г. | F24: 41.6 | G24: 7 | H24: =F24*G24 -> 291.2 | I24: основной склад | J24: не востребовано | K24: нов.удовл. | L24: Обоз С.В. | M24: 8(48351)25097
A25: 19 | B25: НВЛ | C25: VA-00005824 | D25: Гвозди 100мм | E25: 2010 г. | F25: 64 | G25: 5 | H25: =F25*G25 -> 320 | I25: основной склад | J25: не востребовано | K25: нов.удовл. | L25: Обоз С.В. | M25: 8(48351)25097
A26: 20 | B26: НВЛ | C26: VA-00001471 | D26: Дюбель | E26: 2009 г. | F26: 1.62 | G26: 121 | H26: =F26*G26 -> 196.02 | I26: основной склад | J26: не востребовано | K26: нов.удовл. | L26: Обоз С.В. | M26: 8(48351)25097
A27: 21 | B27: НВЛ | C27: VA-00001416 | D27: Топор б/у | E27: 2008 г. | F27: 318.816 | G27: 12 | H27: =F27*G27 -> 3825.792 | I27: основной склад | J27: не востребовано | K27: б/у удовл. | L27: Обоз С.В. | M27: 8(48351)25097
A28: 22 | B28: НВЛ | C28: VA-00004583 | D28: Труба ДУ 203*10 | E28: 2005 г. | F28: 1351.64 | G28: 10.43 | H28: =F28*G28 -> 14097.6052 | I28: основной склад | J28: не востребовано | K28: нов.удовл. | L28: Обоз С.В. | M28: 8(48351)25097
A29: 23 | B29: НВЛ | C29: VA-00005329 | D29: Насос для бочек | E29: 2007 г. | F29: 663.05 | G29: 2 | H29: =F29*G29 -> 1326.1 | I29: основной склад | J29: не востребовано | K29: нов.удовл. | L29: Обоз С.В. | M29: 8(48351)25097
A30: Итого на сумму реализации: | H30: =SUM(H7:H29) -> 670601.3538
